[Event "Swedish Chess Championship 2019: Kadett-SM"]
[Site "Stiga Sports Arena, Arenatorget 1, Eskilstuna, Sweden, Sweden"]
[Date "2019.07.10"]
[Round "4.3"]
[White "Nguyen, Gabriel"]
[Black "Johansson-Ohman, Daniel"]
[Result "1-0"]
[TimeControl "90 minutes for 40 moves + 30 minutes for the rest of the game + 30 seconds per move from move one"]
[WhiteFideId "1720791"]
[BlackFideId "1736361"]
[WhiteElo "2035"]
[BlackElo "1825"]

1. d4 {[%clk 01:30:35]} {[%emt 00:00:24]} Nf6 {[%clk 01:30:43]} {[%emt
00:00:17]} 2. c4 {[%clk 01:30:32]} {[%emt 00:00:33]} e6 {[%clk 01:31:06]}
{[%emt 00:00:07]} 3. Nf3 {[%clk 01:30:36]} {[%emt 00:00:26]} b6 {[%clk
01:28:42]} {[%emt 00:02:54]} 4. g3 {[%clk 01:30:43]} {[%emt 00:00:22]} Bb7
{[%clk 01:29:01]} {[%emt 00:00:11]} 5. Bg2 {[%clk 01:31:07]} {[%emt 00:00:05]}
Be7 {[%clk 01:28:00]} {[%emt 00:01:32]} 6. O-O {[%clk 01:31:18]} {[%emt
00:00:19]} O-O {[%clk 01:28:24]} {[%emt 00:00:06]} 7. b3 {[%clk 01:28:35]}
{[%emt 00:03:13]} c5 {[%clk 01:26:43]} {[%emt 00:02:12]} 8. d5 {[%clk
01:25:14]} {[%emt 00:03:51]} exd5 {[%clk 01:22:52]} {[%emt 00:04:21]} 9. Ne1
{[%clk 01:24:29]} {[%emt 00:01:15]} Ne4 {[%clk 01:08:22]} {[%emt 00:15:00]} 10.
cxd5 {[%clk 01:15:50]} {[%emt 00:09:09]} Bf6 {[%clk 01:03:09]} {[%emt
00:05:43]} 11. Bxe4 {[%clk 01:16:00]} {[%emt 00:00:20]} Bxa1 {[%clk 01:03:27]}
{[%emt 00:00:12]} 12. Bf4 {[%clk 01:00:56]} {[%emt 00:15:33]} Bf6 {[%clk
01:02:47]} {[%emt 00:01:11]} 13. Na3 {[%clk 00:59:21]} {[%emt 00:02:05]} Ba6
{[%clk 00:34:12]} {[%emt 00:29:05]} 14. Qc2 {[%clk 00:50:35]} {[%emt 00:09:17]}
h6 {[%clk 00:32:37]} {[%emt 00:02:05]} 15. h4 {[%clk 00:49:12]} {[%emt
00:01:52]} d6 {[%clk 00:30:53]} {[%emt 00:02:15]} 16. Ng2 {[%clk 00:46:36]}
{[%emt 00:03:06]} Qe7 {[%clk 00:25:21]} {[%emt 00:06:02]} 17. Ne3 {[%clk
00:45:46]} {[%emt 00:01:20]} Be5 {[%clk 00:24:21]} {[%emt 00:01:30]} 18. Nf5
{[%clk 00:41:30]} {[%emt 00:04:45]} Qd7 {[%clk 00:18:54]} {[%emt 00:05:58]} 19.
Bc1 {[%clk 00:35:16]} {[%emt 00:06:45]} b5 {[%clk 00:16:19]} {[%emt 00:03:05]}
20. g4 {[%clk 00:30:40]} {[%emt 00:05:05]} b4 {[%clk 00:16:30]} {[%emt
00:00:19]} 21. Nc4 {[%clk 00:29:46]} {[%emt 00:01:23]} Bxc4 {[%clk 00:16:17]}
{[%emt 00:00:44]} 22. bxc4 {[%clk 00:30:11]} {[%emt 00:00:05]} f6 {[%clk
00:13:12]} {[%emt 00:03:35]} 23. f4 {[%clk 00:24:25]} {[%emt 00:06:16]} Bd4+
{[%clk 00:12:03]} {[%emt 00:01:39]} 24. Kg2 {[%clk 00:24:14]} {[%emt 00:00:41]}
Kf7 {[%clk 00:11:31]} {[%emt 00:01:03]} 25. Ng3 {[%clk 00:18:58]} {[%emt
00:05:45]} Ke7 {[%clk 00:05:17]} {[%emt 00:06:44]} 26. Bf5 {[%clk 00:19:04]}
{[%emt 00:00:24]} Qb7 {[%clk 00:05:26]} {[%emt 00:00:21]} 27. Be6 {[%clk
00:18:18]} {[%emt 00:01:15]} Kd8 {[%clk 00:03:41]} {[%emt 00:02:16]} 28. Qg6
{[%clk 00:15:23]} {[%emt 00:03:25]} Re8 {[%clk 00:02:05]} {[%emt 00:02:06]} 29.
Kh3 {[%clk 00:14:57]} {[%emt 00:00:55]} Na6 {[%clk 00:01:33]} {[%emt 00:01:03]}
30. Nf5 {[%clk 00:15:12]} {[%emt 00:00:15]} Qc7 {[%clk 00:00:31]} {[%emt
00:01:32]} 31. Nxg7 {[%clk 00:15:22]} {[%emt 00:00:20]} Re7 {[%clk 00:00:47]}
{[%emt 00:00:15]} 32. Nf5 {[%clk 00:15:35]} {[%emt 00:00:16]} Rxe6 {[%clk
00:00:34]} {[%emt 00:00:43]} 33. dxe6 {[%clk 00:16:00]} {[%emt 00:00:05]} Kc8
{[%clk 00:00:46]} {[%emt 00:00:18]} 34. Qe8+ {[%clk 00:14:23]} {[%emt
00:02:06]} Kb7 {[%clk 00:01:00]} {[%emt 00:00:17]} 35. Qb5+ {[%clk 00:14:46]}
{[%emt 00:00:06]} Qb6 {[%emt 00:01:01]} 1-0

[Event "Swedish Chess Championship 2019: Kadett-SM"]
[Site "Stiga Sports Arena, Arenatorget 1, Eskilstuna, Sweden, Sweden"]
[Date "2019.07.10"]
[Round "4.4"]
[White "Nord, Gabriel"]
[Black "Muntean, Victor"]
[Result "0-1"]
[TimeControl "90 minutes for 40 moves + 30 minutes for the rest of the game + 30 seconds per move from move one"]
[WhiteFideId "1740660"]
[BlackFideId "1054414"]
[WhiteElo "1792"]
[BlackElo "1971"]

1. e4 {[%clk 01:30:57]} {[%emt 00:00:01]} e5 {[%clk 01:30:55]} {[%emt
00:00:06]} 2. Nf3 {[%clk 01:31:22]} {[%emt 00:00:04]} Nc6 {[%clk 01:31:19]}
{[%emt 00:00:06]} 3. Bb5 {[%clk 01:31:47]} {[%emt 00:00:05]} a6 {[%clk
01:31:44]} {[%emt 00:00:06]} 4. Ba4 {[%clk 01:32:13]} {[%emt 00:00:04]} Nf6
{[%clk 01:32:09]} {[%emt 00:00:05]} 5. O-O {[%clk 01:32:37]} {[%emt 00:00:06]}
Be7 {[%clk 01:32:33]} {[%emt 00:00:06]} 6. Re1 {[%clk 01:33:00]} {[%emt
00:00:06]} b5 {[%clk 01:32:57]} {[%emt 00:00:07]} 7. Bb3 {[%clk 01:33:24]}
{[%emt 00:00:05]} O-O {[%clk 01:33:20]} {[%emt 00:00:07]} 8. c3 {[%clk
01:33:40]} {[%emt 00:00:13]} d5 {[%clk 01:33:43]} {[%emt 00:00:08]} 9. exd5
{[%clk 01:33:00]} {[%emt 00:01:10]} Nxd5 {[%clk 01:34:06]} {[%emt 00:00:07]} 10.
Nxe5 {[%clk 01:30:59]} {[%emt 00:02:32]} Nxe5 {[%clk 01:34:27]} {[%emt
00:00:09]} 11. Rxe5 {[%clk 01:31:24]} {[%emt 00:00:04]} c6 {[%clk 01:34:54]}
{[%emt 00:00:04]} 12. Re1 {[%clk 01:30:48]} {[%emt 00:01:05]} Bd6 {[%clk
01:34:23]} {[%emt 00:01:01]} 13. d4 {[%clk 01:29:46]} {[%emt 00:01:32]} Qh4
{[%clk 01:34:45]} {[%emt 00:00:08]} 14. g3 {[%clk 01:29:12]} {[%emt 00:01:03]}
Qh3 {[%clk 01:35:08]} {[%emt 00:00:07]} 15. Qf3 {[%clk 01:27:29]} {[%emt
00:02:13]} Bg4 {[%clk 01:35:10]} {[%emt 00:00:28]} 16. Qg2 {[%clk 01:26:41]}
{[%emt 00:01:18]} Qh5 {[%clk 01:35:10]} {[%emt 00:00:30]} 17. Bxd5 {[%clk
01:16:23]} {[%emt 00:10:48]} cxd5 {[%clk 01:35:25]} {[%emt 00:00:15]} 18. Nd2
{[%clk 01:15:49]} {[%emt 00:01:05]} Rae8 {[%clk 01:34:26]} {[%emt 00:01:28]} 19.
Re3 {[%clk 01:16:06]} {[%emt 00:00:13]} Rxe3 {[%clk 01:29:31]} {[%emt
00:05:26]} 20. fxe3 {[%clk 01:16:28]} {[%emt 00:00:08]} Re8 {[%clk 01:29:47]}
{[%emt 00:00:13]} 21. Nb3 {[%clk 01:13:58]} {[%emt 00:02:59]} Bh3 {[%clk
01:29:49]} {[%emt 00:00:28]} 22. g4 {[%clk 01:10:40]} {[%emt 00:03:48]} Qh4
{[%clk 01:29:10]} {[%emt 00:01:10]} 23. Qd2 {[%clk 01:02:50]} {[%emt 00:08:19]}
Qxg4+ {[%clk 01:29:27]} {[%emt 00:00:13]} 24. Kh1 {[%clk 01:02:50]} {[%emt
00:00:30]} Qf3+ {[%clk 01:29:51]} {[%emt 00:00:06]} 25. Kg1 {[%clk 01:03:08]}
{[%emt 00:00:11]} Qf1# {[%clk 01:30:15]} {[%emt 00:00:06]} 0-1

[Event "Swedish Chess Championship 2019: Kadett-SM"]
[Site "Stiga Sports Arena, Arenatorget 1, Eskilstuna, Sweden, Sweden"]
[Date "2019.07.10"]
[Round "4.5"]
[White "Ostling, Albin"]
[Black "Mitra, Akash"]
[Result "1/2-1/2"]
[TimeControl "90 minutes for 40 moves + 30 minutes for the rest of the game + 30 seconds per move from move one"]
[WhiteFideId "1746430"]
[BlackFideId "1726714"]
[WhiteElo "1660"]
[BlackElo "1957"]

1. e4 {[%clk 01:30:59]} c5 {[%clk 01:22:02]} {[%emt 00:08:58]} 2. Nc3 {[%clk
01:31:24]} {[%emt 00:00:05]} e6 {[%clk 01:22:04]} {[%emt 00:00:28]} 3. f4
{[%clk 01:31:48]} {[%emt 00:00:06]} a6 {[%clk 01:22:13]} {[%emt 00:00:22]} 4.
a4 {[%clk 01:31:58]} {[%emt 00:00:19]} Nc6 {[%clk 01:22:04]} {[%emt 00:00:38]}
5. Nf3 {[%clk 01:31:57]} {[%emt 00:00:30]} Nge7 {[%clk 01:21:10]} {[%emt
00:01:24]} 6. g3 {[%clk 01:25:25]} {[%emt 00:07:03]} d5 {[%clk 01:21:02]}
{[%emt 00:00:39]} 7. Bg2 {[%clk 01:24:22]} {[%emt 00:01:32]} Rb8 {[%clk
01:17:04]} {[%emt 00:04:27]} 8. O-O {[%clk 01:16:28]} {[%emt 00:08:24]} g6
{[%clk 01:09:34]} {[%emt 00:04:19]} 9. d4 {[%clk 01:13:38]} {[%emt 00:07:01]}
cxd4 {[%clk 01:07:59]} {[%emt 00:02:05]} 10. Nxd4 {[%clk 01:13:30]} {[%emt
00:00:38]} Bg7 {[%clk 01:08:16]} {[%emt 00:00:14]} 11. e5 {[%clk 01:09:08]}
{[%emt 00:04:53]} Nxd4 {[%clk 01:07:00]} {[%emt 00:01:46]} 12. Qxd4 {[%clk
01:09:27]} {[%emt 00:00:11]} Nc6 {[%clk 01:06:47]} {[%emt 00:00:42]} 13. Qf2
{[%clk 01:02:00]} {[%emt 00:07:58]} O-O {[%clk 01:05:24]} {[%emt 00:01:52]} 14.
Ne2 {[%clk 01:00:39]} {[%emt 00:01:52]} Qc7 {[%clk 01:00:48]} {[%emt 00:05:05]}
15. Be3 {[%clk 00:54:42]} {[%emt 00:06:27]} b6 {[%clk 00:54:20]} {[%emt
00:06:58]} 16. Rfc1 {[%clk 00:46:55]} {[%emt 00:08:17]} f6 {[%clk 00:52:22]}
{[%emt 00:02:28]} 17. exf6 {[%clk 00:25:19]} {[%emt 00:22:05]} Bxf6 {[%clk
00:48:37]} {[%emt 00:04:15]} 18. Nd4 {[%clk 00:25:09]} {[%emt 00:00:41]} Nxd4
{[%clk 00:40:57]} {[%emt 00:08:09]} 19. Bxd4 {[%clk 00:25:27]} {[%emt
00:00:12]} Bxd4 {[%clk 00:33:39]} {[%emt 00:07:48]} 20. Qxd4 {[%clk 00:25:46]}
{[%emt 00:00:11]} Qc5 {[%clk 00:33:21]} {[%emt 00:00:46]} 21. c3 {[%clk
00:24:15]} {[%emt 00:02:03]} Bd7 {[%clk 00:33:07]} {[%emt 00:00:44]} 22. b4
{[%clk 00:18:38]} {[%emt 00:06:07]} Qxd4+ {[%clk 00:33:02]} {[%emt 00:00:35]}
23. cxd4 {[%clk 00:19:02]} {[%emt 00:00:06]} Rfc8 {[%clk 00:28:57]} {[%emt
00:04:36]} 24. Bf1 {[%clk 00:17:23]} {[%emt 00:02:09]} a5 {[%clk 00:23:18]}
{[%emt 00:06:09]} 25. b5 {[%clk 00:13:42]} {[%emt 00:04:10]} Kg7 {[%clk
00:23:13]} {[%emt 00:00:35]} 26. h4 {[%clk 00:12:50]} {[%emt 00:01:22]} h6
{[%clk 00:23:35]} {[%emt 00:00:09]} 27. Kg2 {[%clk 00:11:07]} {[%emt 00:02:12]}
Kf6 {[%clk 00:23:08]} {[%emt 00:00:57]} 28. Kf3 {[%clk 00:11:05]} {[%emt
00:00:32]} Be8 {[%clk 00:22:17]} {[%emt 00:01:20]} 29. Bh3 {[%clk 00:09:45]}
{[%emt 00:01:50]} Bd7 {[%clk 00:17:44]} {[%emt 00:05:04]} 30. Kg2 {[%clk
00:09:19]} {[%emt 00:00:55]} Ke7 {[%clk 00:16:38]} {[%emt 00:01:37]} 31. Bg4
{[%clk 00:06:33]} {[%emt 00:03:17]} Kd6 {[%clk 00:16:44]} {[%emt 00:00:23]} 32.
Be2 {[%clk 00:06:20]} {[%emt 00:00:44]} Be8 {[%clk 00:16:25]} {[%emt 00:00:49]}
33. Bd3 {[%clk 00:05:44]} {[%emt 00:01:05]} Ke7 {[%clk 00:13:55]} {[%emt
00:03:00]} 1/2-1/2

[Event "Swedish Chess Championship 2019: Kadett-SM"]
[Site "Stiga Sports Arena, Arenatorget 1, Eskilstuna, Sweden, Sweden"]
[Date "2019.07.10"]
[Round "4.6"]
[White "Ostensson, Julia"]
[Black "Lindholm, Gustav"]
[Result "0-1"]
[TimeControl "90 minutes for 40 moves + 30 minutes for the rest of the game + 30 seconds per move from move one"]
[WhiteFideId "1747703"]
[BlackFideId "1736515"]
[WhiteElo "1475"]
[BlackElo "1950"]

1. e4 {[%clk 01:30:57]} c5 {[%clk 01:30:30]} 2. Nf3 {[%clk 01:30:57]} e6 {[%clk
01:30:30]} 3. d4 {[%clk 01:30:57]} cxd4 {[%clk 01:30:30]} 4. Nxd4 {[%clk
01:30:57]} a6 {[%clk 01:30:30]} 5. a4 {[%clk 01:30:57]} Nf6 {[%clk 01:29:52]}
{[%emt 00:44:54]} 6. Nc3 {[%clk 01:13:48]} Qc7 {[%clk 01:29:52]} 7. Bd3 {[%clk
01:13:48]} Be7 {[%clk 01:29:52]} 8. O-O {[%clk 01:13:48]} b6 {[%clk 01:29:52]}
9. Bd2 {[%clk 01:13:48]} Bb7 {[%clk 01:29:52]} 10. Kh1 {[%clk 01:13:48]} d6
{[%clk 01:29:52]} 11. Qe2 {[%clk 01:13:48]} Nbd7 {[%clk 01:29:52]} 12. Nb3
{[%clk 01:13:48]} O-O {[%clk 01:29:52]} 13. f4 {[%clk 01:13:48]} e5 {[%clk
01:29:52]} 14. Rac1 {[%clk 01:13:48]} Rfe8 {[%clk 01:29:52]} 15. f5 {[%clk
01:13:48]} Bf8 {[%clk 01:29:52]} 16. Bc4 {[%clk 01:13:48]} Rec8 {[%clk
01:29:52]} 17. Bd5 {[%clk 01:13:48]} Nxd5 {[%clk 01:29:52]} 18. Nxd5 {[%clk
01:13:48]} Qc4 {[%clk 01:29:52]} 19. Qd3 {[%clk 01:13:48]} Bxd5 {[%clk
00:36:21]} {[%emt 02:12:15]} 20. Qxd5 {[%clk 00:08:02]} {[%emt 00:01:53]} Nf6
{[%clk 00:35:34]} {[%emt 00:01:17]} 21. Qxc4 {[%clk 00:06:58]} {[%emt
00:01:35]} Rxc4 {[%clk 00:35:56]} {[%emt 00:00:07]} 22. Be3 {[%clk 00:07:14]}
{[%emt 00:00:13]} Rxa4 {[%clk 00:31:02]} {[%emt 00:05:25]} 23. Bxb6 {[%clk
00:05:39]} {[%emt 00:02:05]} Rxe4 {[%clk 00:30:23]} {[%emt 00:01:09]} 24. Ba5
{[%clk 00:04:17]} {[%emt 00:01:50]} Rc8 {[%clk 00:28:52]} {[%emt 00:02:02]} 25.
Nd2 {[%clk 00:03:44]} {[%emt 00:01:03]} Re2 {[%clk 00:28:14]} {[%emt 00:01:09]}
26. Bc3 {[%clk 00:01:51]} {[%emt 00:02:24]} Nd5 {[%clk 00:25:54]} {[%emt
00:02:49]} 27. Ba5 {[%clk 00:01:05]} {[%emt 00:01:17]} Rc5 {[%clk 00:23:54]}
{[%emt 00:02:30]} 28. Nb3 {[%clk 00:00:44]} {[%emt 00:00:51]} Rcxc2 {[%clk
00:24:08]} {[%emt 00:00:16]} 29. Rxc2 {[%clk 00:00:33]} {[%emt 00:00:41]} Rxc2
{[%clk 00:24:30]} {[%emt 00:00:07]} 30. Rb1 {[%clk 00:00:34]} {[%emt 00:00:30]}
Ne3 {[%clk 00:24:06]} {[%emt 00:00:54]} 31. Bd2 {[%clk 00:00:34]} {[%emt
00:00:30]} Nxf5 {[%clk 00:24:05]} {[%emt 00:00:31]} 32. Bc3 {[%clk 00:00:38]}
{[%emt 00:00:26]} g6 {[%clk 00:23:39]} {[%emt 00:00:56]} 33. Ra1 {[%clk
00:00:36]} {[%emt 00:00:32]} Nd4 {[%clk 00:22:26]} {[%emt 00:01:42]} 34. Nxd4
{[%clk 00:00:37]} {[%emt 00:00:30]} exd4 {[%clk 00:22:50]} {[%emt 00:00:07]} 35.
Bxd4 {[%clk 00:00:57]} {[%emt 00:00:11]} Bg7 {[%clk 00:23:06]} {[%emt
00:00:13]} 36. Bxg7 {[%clk 00:00:35]} {[%emt 00:00:53]} Kxg7 {[%clk 00:23:31]}
{[%emt 00:00:05]} 37. h3 {[%clk 00:00:38]} {[%emt 00:00:27]} Rxb2 {[%clk
00:23:43]} {[%emt 00:00:18]} 38. Rxa6 {[%clk 00:01:03]} {[%emt 00:00:06]} d5
{[%clk 00:24:09]} {[%emt 00:00:04]} 39. Rd6 {[%clk 00:00:48]} {[%emt 00:00:44]}
Rd2 {[%clk 00:24:35]} {[%emt 00:00:05]} 40. Kh2 {[%clk 00:00:59]} {[%emt
00:00:19]} Kf8 {[%clk 00:24:09]} {[%emt 00:00:56]} 41. Rd8+ {[%clk 00:00:41]}
{[%emt 00:00:47]} Ke7 {[%clk 00:24:33]} {[%emt 00:00:06]} 42. Rh8 {[%clk
00:01:05]} {[%emt 00:00:06]} h5 {[%clk 00:24:59]} {[%emt 00:00:05]} 43. Kg3
{[%clk 00:01:10]} {[%emt 00:00:25]} Ke6 {[%clk 00:25:15]} {[%emt 00:00:14]} 44.
Re8+ {[%clk 00:01:11]} {[%emt 00:00:30]} Kf5 {[%clk 00:25:41]} {[%emt
00:00:04]} 45. Kf3 {[%clk 00:01:04]} {[%emt 00:00:37]} f6 {[%clk 00:25:18]}
{[%emt 00:00:53]} 46. g3 {[%clk 00:00:35]} {[%emt 00:00:58]} d4 {[%clk
00:24:40]} {[%emt 00:01:08]} 47. Re1 {[%clk 00:00:33]} {[%emt 00:00:32]} Rh2
{[%clk 00:24:27]} {[%emt 00:00:41]} 48. g4+ {[%clk 00:00:36]} {[%emt 00:00:28]}
hxg4+ {[%clk 00:24:29]} {[%emt 00:00:28]} 49. hxg4+ {[%clk 00:01:02]} {[%emt
00:00:05]} Kg5 {[%clk 00:24:47]} {[%emt 00:00:11]} 50. Rd1 {[%clk 00:01:27]}
{[%emt 00:00:05]} Rh3+ {[%clk 00:24:41]} {[%emt 00:00:36]} 51. Kg2 {[%clk
00:01:50]} {[%emt 00:00:07]} Rh4 {[%clk 00:25:07]} {[%emt 00:00:04]} 0-1

[Event "Swedish Chess Championship 2019: Kadett-SM"]
[Site "Stiga Sports Arena, Arenatorget 1, Eskilstuna, Sweden, Sweden"]
[Date "2019.07.11"]
[Round "5.1"]
[White "Muntean, Victor"]
[Black "Dingertz, Erik"]
[Result "1-0"]
[TimeControl "90 minutes for 40 moves + 30 minutes for the rest of the game + 30 seconds per move from move one"]
[WhiteFideId "1054414"]
[BlackFideId "1741578"]
[WhiteElo "1971"]
[BlackElo "1959"]

1. e4 {[%clk 01:30:57]} {[%emt 00:00:02]} e5 {[%clk 01:30:53]} {[%emt
00:00:08]} 2. Nf3 {[%clk 01:31:14]} {[%emt 00:00:13]} Nc6 {[%clk 01:31:13]}
{[%emt 00:00:10]} 3. Bc4 {[%clk 01:31:16]} {[%emt 00:00:29]} Bc5 {[%clk
01:31:33]} {[%emt 00:00:09]} 4. c3 {[%clk 01:31:17]} {[%emt 00:00:30]} Nf6
{[%clk 01:31:53]} {[%emt 00:00:09]} 5. d3 {[%clk 01:31:20]} {[%emt 00:00:28]}
O-O {[%clk 01:32:11]} {[%emt 00:00:08]} 6. O-O {[%clk 01:31:38]} {[%emt
00:00:15]} d5 {[%clk 01:31:06]} {[%emt 00:01:35]} 7. exd5 {[%clk 01:31:19]}
{[%emt 00:00:50]} Nxd5 {[%clk 01:31:28]} {[%emt 00:00:07]} 8. b4 {[%clk
01:28:19]} {[%emt 00:03:30]} Be7 {[%clk 01:21:04]} {[%emt 00:10:53]} 9. b5
{[%clk 01:19:57]} {[%emt 00:08:53]} Na5 {[%clk 01:21:11]} {[%emt 00:00:23]} 10.
Nxe5 {[%clk 01:19:40]} {[%emt 00:00:47]} Bf6 {[%clk 01:21:29]} {[%emt
00:00:12]} 11. Qf3 {[%clk 01:08:13]} {[%emt 00:11:57]} Nxc4 {[%clk 01:09:26]}
{[%emt 00:12:34]} 12. dxc4 {[%clk 01:06:39]} {[%emt 00:02:04]} Bxe5 {[%clk
01:06:37]} {[%emt 00:03:18]} 13. cxd5 {[%clk 01:06:14]} {[%emt 00:00:55]} Qd6
{[%clk 01:06:52]} {[%emt 00:00:15]} 14. h3 {[%clk 01:05:28]} {[%emt 00:01:16]}
Rd8 {[%clk 01:06:27]} {[%emt 00:00:54]} 15. Re1 {[%clk 01:03:33]} {[%emt
00:02:27]} Bd7 {[%clk 00:59:51]} {[%emt 00:07:06]} 16. a4 {[%clk 01:01:51]}
{[%emt 00:02:12]} a6 {[%clk 00:59:44]} {[%emt 00:00:37]} 17. bxa6 {[%clk
00:51:29]} {[%emt 00:10:52]} Rxa6 {[%clk 01:00:03]} {[%emt 00:00:10]} 18. Nd2
{[%clk 00:50:37]} {[%emt 00:01:23]} Qf6 {[%clk 00:57:32]} {[%emt 00:03:01]} 19.
Qxf6 {[%clk 00:50:20]} {[%emt 00:00:47]} gxf6 {[%clk 00:56:46]} {[%emt
00:01:16]} 20. Ne4 {[%clk 00:45:54]} {[%emt 00:04:56]} Bf5 {[%clk 00:49:50]}
{[%emt 00:07:26]} 21. f4 {[%clk 00:45:56]} {[%emt 00:00:28]} Bxe4 {[%clk
00:50:12]} {[%emt 00:00:08]} 22. fxe5 {[%clk 00:46:17]} {[%emt 00:00:10]} Bxd5
{[%clk 00:50:36]} {[%emt 00:00:05]} 23. exf6 {[%clk 00:46:39]} {[%emt
00:00:08]} Re6 {[%clk 00:39:29]} {[%emt 00:11:36]} 24. Bf4 {[%clk 00:43:07]}
{[%emt 00:04:02]} Rde8 {[%clk 00:37:46]} {[%emt 00:02:13]} 25. Rxe6 {[%clk
00:42:52]} {[%emt 00:00:47]} Rxe6 {[%clk 00:35:57]} {[%emt 00:02:18]} 26. Bxc7
{[%clk 00:43:15]} {[%emt 00:00:07]} Rxf6 {[%clk 00:35:23]} {[%emt 00:01:05]} 27.
Rd1 {[%clk 00:43:04]} {[%emt 00:00:41]} Rc6 {[%clk 00:35:30]} {[%emt 00:00:22]}
28. Be5 {[%clk 00:40:44]} {[%emt 00:02:50]} f6 {[%clk 00:35:28]} {[%emt
00:00:32]} 29. Bxf6 {[%clk 00:37:38]} {[%emt 00:03:35]} Bxg2 {[%clk 00:35:45]}
{[%emt 00:00:12]} 30. Kxg2 {[%clk 00:38:01]} {[%emt 00:00:08]} Rxf6 {[%clk
00:36:13]} {[%emt 00:00:03]} 31. Rd8+ {[%clk 00:38:23]} {[%emt 00:00:08]} Kf7
{[%clk 00:35:58]} {[%emt 00:00:44]} 32. Rd7+ {[%clk 00:38:43]} {[%emt
00:00:11]} Kg6 {[%clk 00:35:37]} {[%emt 00:00:51]} 33. Rxb7 {[%clk 00:38:49]}
{[%emt 00:00:24]} Rc6 {[%clk 00:35:32]} {[%emt 00:00:34]} 34. Rb3 {[%clk
00:39:11]} {[%emt 00:00:08]} Kf5 {[%clk 00:34:06]} {[%emt 00:01:55]} 35. Kf3
{[%clk 00:39:03]} {[%emt 00:00:39]} Ke5 {[%clk 00:34:03]} {[%emt 00:00:32]} 36.
a5 {[%clk 00:31:49]} {[%emt 00:07:45]} Kd5 {[%clk 00:31:01]} {[%emt 00:03:32]}
37. Rb5+ {[%clk 00:31:07]} {[%emt 00:01:12]} Kc4 {[%clk 00:30:34]} {[%emt
00:00:56]} 38. Rb6 {[%clk 00:31:28]} {[%emt 00:00:10]} Rc5 {[%clk 00:30:02]}
{[%emt 00:01:01]} 39. a6 {[%clk 00:31:06]} {[%emt 00:00:54]} Kxc3 {[%clk
00:30:08]} {[%emt 00:00:23]} 40. a7 {[%clk 00:31:23]} {[%emt 00:00:12]} Ra5
{[%clk 00:30:32]} {[%emt 00:00:06]} 41. Rb7 {[%clk 00:31:48]} {[%emt 00:00:06]}
h5 {[%clk 00:30:52]} {[%emt 00:00:09]} 42. Rd7 {[%clk 00:31:22]} {[%emt
00:00:56]} Kc4 {[%clk 00:26:30]} {[%emt 00:04:52]} 43. Ke4 {[%clk 00:23:58]}
{[%emt 00:07:54]} Kc3 {[%clk 00:26:50]} {[%emt 00:00:09]} 44. h4 {[%clk
00:23:59]} {[%emt 00:00:30]} Ra6 {[%clk 00:26:18]} {[%emt 00:01:01]} 45. Kf5
{[%clk 00:21:49]} {[%emt 00:02:42]} Kc4 {[%clk 00:25:58]} {[%emt 00:00:48]} 46.
Kg5 {[%clk 00:22:03]} {[%emt 00:00:17]} Ra5+ {[%clk 00:26:12]} {[%emt
00:00:16]} 47. Kg6 {[%clk 00:22:24]} {[%emt 00:00:09]} Kc5 {[%clk 00:25:29]}
{[%emt 00:01:12]} 48. Rd8 {[%clk 00:21:35]} {[%emt 00:01:20]} Rxa7 {[%clk
00:25:40]} {[%emt 00:00:19]} 49. Kxh5 {[%clk 00:21:59]} {[%emt 00:00:06]} Ra1
{[%clk 00:25:49]} {[%emt 00:00:21]} 50. Kh6 {[%clk 00:22:07]} {[%emt 00:00:22]}
Rh1 {[%clk 00:24:03]} {[%emt 00:02:15]} 51. h5 {[%clk 00:22:31]} {[%emt
00:00:06]} Kc6 {[%clk 00:24:28]} {[%emt 00:00:05]} 52. Kg6 {[%clk 00:22:55]}
{[%emt 00:00:07]} Rg1 {[%clk 00:24:32]} {[%emt 00:00:26]} 53. Kh7 {[%clk
00:23:16]} {[%emt 00:00:09]} Rh1 {[%clk 00:24:04]} {[%emt 00:00:58]} 54. h6
{[%clk 00:23:41]} {[%emt 00:00:05]} Kc7 {[%clk 00:24:16]} {[%emt 00:00:17]} 55.
Rd4 {[%clk 00:23:30]} {[%emt 00:00:41]} Rg1 {[%clk 00:23:03]} {[%emt 00:01:43]}
56. Kh8 {[%clk 00:23:46]} {[%emt 00:00:14]} Rg2 {[%clk 00:18:59]} {[%emt
00:04:34]} 57. h7 {[%clk 00:24:00]} {[%emt 00:00:17]} Rg1 {[%clk 00:19:18]}
{[%emt 00:00:11]} 58. Ra4 {[%clk 00:24:11]} {[%emt 00:00:19]} Kd8 {[%clk
00:15:17]} {[%emt 00:04:30]} 59. Ra8+ {[%clk 00:24:05]} {[%emt 00:00:37]} Ke7
{[%clk 00:15:19]} {[%emt 00:00:28]} 60. Rg8 {[%clk 00:24:28]} {[%emt 00:00:06]}
Rh1 {[%clk 00:14:33]} {[%emt 00:01:15]} 61. Kg7 {[%clk 00:24:26]} {[%emt
00:00:33]} Rg1 {[%clk 00:14:51]} {[%emt 00:00:12]} 62. Kh6 {[%clk 00:24:50]}
{[%emt 00:00:07]} Rh1+ {[%clk 00:15:08]} {[%emt 00:00:14]} 63. Kg6 {[%clk
00:25:15]} {[%emt 00:00:04]} Rg1+ {[%clk 00:15:19]} {[%emt 00:00:19]} 64. Kf5
{[%clk 00:25:38]} {[%emt 00:00:06]} 1-0